bitfinex/quotes_BTCUSD_20240819
["timestamp","ask_amount","ask_price","bid_price","bid_amount"]
[1724100360010,0.004274,59352.0,59351.0,3.85979237]
[1724100360513,0.004274,59352.0,59351.0,3.52503982]
[1724100360814,0.004274,59352.0,59351.0,3.53104224]
[1724100361226,0.004274,59352.0,59351.0,3.54504224]
[1724100361420,0.004274,59352.0,59351.0,3.49509387]
[1724100361595,0.004274,59352.0,59351.0,3.48109387]
[1724100361839,0.004274,59352.0,59351.0,3.49509387]
[1724100362188,0.004274,59352.0,59351.0,3.54504224]
[1724100362393,0.004274,59352.0,59351.0,3.49509387]
[1724100362608,0.004274,59352.0,59351.0,3.54504224]
[1724100362817,0.004274,59352.0,59351.0,3.49509387]
[1724100363230,0.004274,59352.0,59351.0,3.47209387]
[1724100363680,0.004274,59352.0,59351.0,3.52204224]
[1724100363902,0.004274,59352.0,59351.0,3.47209387]
[1724100364729,0.004274,59352.0,59351.0,3.92070744]
[1724100364979,0.004274,59352.0,59351.0,3.86878488]
[1724100367490,0.004274,59352.0,59351.0,3.96868163]
[1724100369163,0.004274,59352.0,59351.0,3.59507658]
[1724100369392,0.004274,59352.0,59351.0,3.96876647]
[1724100371345,0.004274,59352.0,59351.0,3.86878376]
[1724100371760,0.004274,59352.0,59351.0,3.84578376]
[1724100372551,0.004274,59352.0,59351.0,3.70628376]
[1724100374030,0.004274,59352.0,59351.0,3.04560239]
[1724100375956,0.004274,59352.0,59351.0,2.99561587]
[1724100376161,0.004274,59352.0,59351.0,3.04560657]
[1724100376362,0.004274,59352.0,59351.0,2.99561587]
[1724100376611,0.004274,59352.0,59351.0,3.04560734]
[1724100377035,0.004274,59352.0,59351.0,2.87425857]
[1724100378478,0.004274,59352.0,59351.0,2.87424232]
[1724100378733,0.004274,59352.0,59351.0,1.32374048]
[1724100379238,0.079274,59352.0,59351.0,1.3242671]
[1724100379726,0.079274,59352.0,59351.0,1.3102671]
[1724100379909,0.079274,59352.0,59351.0,1.3242671]
[1724100380322,0.142374,59352.0,59351.0,0.01631748]
[1724100380552,0.1566114,59352.0,59351.0,0.28480648]
[1724100380759,0.1566114,59352.0,59351.0,0.29780648]
[1724100381144,0.1566114,59352.0,59351.0,0.28480648]
[1724100381295,0.1566114,59352.0,59351.0,0.29680648]
[1724100381497,0.1566114,59352.0,59351.0,0.28480648]
[1724100381882,0.1566114,59352.0,59351.0,0.30580648]
[1724100382495,0.1566114,59352.0,59351.0,0.13731748]
[1724100382738,0.1566114,59352.0,59351.0,0.03731748]
[1724100382944,0.1566114,59352.0,59351.0,0.02531748]
[1724100383139,0.1566114,59352.0,59351.0,0.20480648]
[1724100384727,0.142374,59352.0,59351.0,0.20480648]
[1724100385048,0.142374,59352.0,59351.0,0.03631748]
[1724100385250,0.142374,59352.0,59351.0,0.20480648]
[1724100385462,0.142374,59352.0,59351.0,0.54178448]
[1724100386348,0.142374,59352.0,59351.0,0.03631748]
[1724100386989,0.1734589,59352.0,59351.0,0.20480648]
[1724100387201,0.142374,59352.0,59351.0,0.20480648]
[1724100387852,0.142374,59352.0,59351.0,0.03631748]
[1724100388845,0.142374,59352.0,59351.0,0.20480648]
[1724100389048,0.079274,59352.0,59351.0,0.54178448]
[1724100389268,0.079274,59352.0,59351.0,0.87876248]
[1724100389497,0.079274,59352.0,59351.0,2.37876248]
[1724100389698,0.079274,59352.0,59351.0,2.3792891]
[1724100389992,0.004274,59352.0,59351.0,2.37876248]
[1724100390443,0.004274,59352.0,59351.0,2.7921671]
[1724100390982,0.004274,59352.0,59351.0,2.8533671]
[1724100392055,0.004274,59352.0,59351.0,3.36169387]
[1724100392218,0.004274,59352.0,59351.0,3.51161125]
[1724100392420,0.004274,59352.0,59351.0,3.51159606]
[1724100392597,0.004274,59352.0,59351.0,3.5115956]
[1724100392805,0.004274,59352.0,59351.0,3.46169387]
[1724100393207,0.004274,59352.0,59351.0,3.45269387]
[1724100393610,0.004274,59352.0,59351.0,3.46669387]
[1724100394005,0.004274,59352.0,59351.0,3.45569387]
[1724100394443,0.004274,59352.0,59351.0,3.46969387]
[1724100394844,0.004274,59352.0,59351.0,3.45569387]
[1724100395246,0.004274,59352.0,59351.0,3.46969387]
[1724100398408,0.004274,59352.0,59351.0,3.51958831]
[1724100401729,0.004274,59352.0,59351.0,3.51959292]
[1724100403140,0.004274,59352.0,59351.0,3.50559292]
[1724100403536,0.004274,59352.0,59351.0,3.51959292]
[1724100403739,0.004274,59352.0,59351.0,3.84257092]
[1724100403968,0.004274,59352.0,59351.0,4.26419959]
[1724100405331,0.004274,59352.0,59351.0,4.27819959]
[1724100409920,0.00060676,59359.0,59358.0,1.24520962]
[1724100410122,0.00060676,59359.0,59358.0,1.77644762]
[1724100410330,0.00060676,59359.0,59358.0,1.79197434]
[1724100411081,0.00060676,59359.0,59358.0,1.80397434]
[1724100412234,0.00060676,59359.0,59358.0,1.97532311]
[1724100412793,0.00060676,59359.0,59358.0,2.42416111]
[1724100412998,0.00060676,59359.0,59358.0,2.47406336]
[1724100413201,0.00060676,59359.0,59358.0,2.89760122]
[1724100413548,0.00060676,59359.0,59358.0,2.80689365]
[1724100413745,0.00060676,59359.0,59358.0,2.02883399]
[1724100413927,0.00060676,59359.0,59358.0,2.06232004]
[1724100414134,0.00060676,59359.0,59358.0,3.62620253]
[1724100414390,0.00060676,59359.0,59358.0,3.61220244]
[1724100414646,0.00060676,59359.0,59358.0,3.62120244]
[1724100414815,0.00060676,59359.0,59358.0,3.63520244]
[1724100415018,0.00060676,59359.0,59358.0,3.62120244]
[1724100415574,0.00060676,59359.0,59358.0,3.6211952]
[1724100415778,0.00060676,59359.0,59358.0,3.6351952]
[1724100415985,0.00060676,59359.0,59358.0,3.6491952]
[1724100416591,0.00060676,59359.0,59358.0,3.6351952]
[1724100416857,0.00060676,59359.0,59358.0,3.6491952]
[1724100417065,0.00060676,59359.0,59358.0,3.6351952]
[1724100417403,0.00060676,59359.0,59358.0,3.6491952]
[1724100418158,0.00060676,59359.0,59358.0,3.59932004]
[1724100418681,0.00060676,59359.0,59358.0,2.49496865]
[1724100418869,0.00060676,59359.0,59358.0,2.50268369]
[1724100419068,0.08380676,59359.0,59358.0,2.93392169]
[1724100419287,0.08380676,59359.0,59358.0,2.59751031]
[1724100420202,0.08462876,59359.0,59358.0,2.56951031]
[1724100420377,0.08462876,59359.0,59358.0,2.91444831]
[1724100420516,0.08462876,59359.0,59358.0,2.58751031]
[1724100420718,0.08462876,59359.0,59358.0,2.57951031]
[1724100420919,0.08462876,59359.0,59358.0,2.57651031]
[1724100421724,0.08462876,59359.0,59358.0,2.91344831]
[1724100422331,0.08462876,59359.0,59358.0,2.92244831]
[1724100423160,0.00142876,59359.0,59358.0,2.92244831]
[1724100423361,0.00142876,59359.0,59358.0,2.58551031]
[1724100423766,0.00142876,59359.0,59358.0,2.92244831]
[1724100424384,0.00142876,59359.0,59358.0,1.42244831]
[1724100425058,0.00142876,59359.0,59358.0,2.92244831]
[1724100428940,0.00142876,59359.0,59358.0,1.42244831]
[1724100429415,0.00142876,59359.0,59358.0,2.92244831]
[1724100431463,0.00142876,59359.0,59358.0,3.00284831]
[1724100432587,0.00142876,59359.0,59358.0,1.50284831]
[1724100433005,0.00142876,59359.0,59358.0,1.40854831]
[1724100433238,0.00142876,59359.0,59358.0,2.92244831]
[1724100435226,0.00016519,59359.0,59358.0,2.92244831]
[1724100436059,0.00016519,59359.0,59358.0,3.11403892]
[1724100436459,0.00016519,59359.0,59358.0,3.13903423]
[1724100437281,0.00016519,59359.0,59358.0,3.11409108]
[1724100437495,0.00016519,59359.0,59358.0,3.11408986]
[1724100438067,0.00016519,59359.0,59358.0,3.13911063]
[1724100438311,0.00016519,59359.0,59358.0,3.5127719]
[1724100439058,0.00016519,59359.0,59358.0,3.5037719]
[1724100439232,0.00016519,59359.0,59358.0,3.5137719]
[1724100439676,0.00016519,59359.0,59358.0,3.5067719]
[1724100439787,0.00016519,59359.0,59358.0,3.5147719]
[1724100440237,0.00016519,59359.0,59358.0,3.68612067]
[1724100440438,0.00016519,59359.0,59358.0,4.02305867]
[1724100440866,0.00016519,59359.0,59358.0,3.68612067]
[1724100441200,0.00016519,59359.0,59358.0,4.02305867]
[1724100444126,0.00016519,59359.0,59358.0,4.02396287]
[1724100444914,0.00016519,59359.0,59358.0,3.61142487]
[1724100445143,0.00016519,59359.0,59358.0,3.21275286]
[1724100445521,0.00016519,59359.0,59358.0,3.16270128]
[1724100445731,0.00016519,59359.0,59358.0,2.83105251]
[1724100446704,0.00016519,59359.0,59358.0,2.88110634]
[1724100446888,0.00016519,59359.0,59358.0,2.83105251]
[1724100447098,0.00016519,59359.0,59358.0,3.36137672]
[1724100447481,0.00016519,59359.0,59358.0,3.42397672]
[1724100450181,0.00016519,59359.0,59358.0,3.3489144]
[1724100450378,0.00016519,59359.0,59358.0,3.42396865]
[1724100451589,0.00016519,59359.0,59358.0,3.42394929]
[1724100455193,0.00016519,59359.0,59358.0,3.76088729]
[1724100455612,0.00016519,59359.0,59358.0,3.42394929]
[1724100456279,0.00016519,59359.0,59358.0,3.34891324]
[1724100456632,0.00016519,59359.0,59358.0,3.68585124]
[1724100456834,0.00016519,59359.0,59358.0,3.34891324]
[1724100459410,0.00016519,59359.0,59358.0,3.68585124]
[1724100459614,0.00016519,59359.0,59358.0,3.78593323]
[1724100460145,0.00016519,59359.0,59358.0,3.44899523]
[1724100460549,0.00016519,59359.0,59358.0,3.620344]
[1724100461129,0.00016519,59359.0,59358.0,3.957282]
[1724100461634,0.00016519,59359.0,59358.0,3.620344]
[1724100463629,0.00016519,59359.0,59358.0,3.61456201]
[1724100466472,0.00016519,59359.0,59358.0,3.61456198]
[1724100469197,0.00016519,59359.0,59358.0,3.61291461]
[1724100470195,0.54595966,59369.0,59368.0,0.505321]
[1724100470406,0.0778,59369.0,59368.0,0.52853974]
[1724100470775,0.0778,59369.0,59368.0,2.02853974]
[1724100471049,0.0778,59369.0,59368.0,2.36542074]
[1724100473815,0.168415,59377.0,59368.0,2.36542074]
[1724100473816,0.00247338,59378.0,59370.0,0.336867]
[1724100474059,0.168415,59377.0,59372.0,0.168428]
[1724100474540,0.168412,59378.0,59373.0,0.02320013]
[1724100474787,0.64498966,59379.0,59373.0,0.19162613]
[1724100475033,0.00842,59379.0,59373.0,0.36005013]
[1724100475318,0.00842,59379.0,59378.0,0.168412]
[1724100475575,0.00842,59379.0,59378.0,2.005237]
[1724100475809,0.00842,59379.0,59378.0,2.36524356]
[1724100476280,0.00842,59379.0,59378.0,2.44434356]
[1724100476493,0.00842,59379.0,59378.0,2.36524356]
[1724100476909,0.00842,59379.0,59378.0,0.86524356]
[1724100477434,0.00842,59379.0,59378.0,1.20206856]
[1724100477647,0.00842,59379.0,59378.0,1.34546856]
[1724100478278,0.00842,59379.0,59378.0,1.51734395]
[1724100478491,0.00842,59379.0,59378.0,1.52434395]
[1724100478743,0.00842,59379.0,59378.0,1.61834395]
[1724100478974,0.00842,59379.0,59378.0,3.11134395]
[1724100479427,0.1,59405.0,59389.0,0.0811]
[1724100479657,0.02850432,59416.0,59384.0,0.0628]
[1724100479658,0.05046594,59426.0,59404.0,0.0943]
[1724100479867,0.00822,59429.0,59427.0,0.841367]
[1724100480093,0.00822,59429.0,59427.0,0.0324]
[1724100480094,0.00089027,59429.0,59427.0,0.0324]
[1724100480317,0.00089027,59429.0,59428.0,0.50439424]
[1724100480532,0.00089027,59429.0,59428.0,0.599111]
[1724100480739,0.00089027,59429.0,59428.0,1.30768571]
[1724100480956,0.00089027,59429.0,59428.0,1.38468571]
[1724100481253,0.0047165,59439.0,59438.0,0.504727]
[1724100481508,0.0047165,59439.0,59438.0,1.27252362]
[1724100481704,0.0047165,59439.0,59438.0,1.28489695]
[1724100482191,0.0047165,59439.0,59438.0,0.01237333]
[1724100482411,0.0047165,59439.0,59438.0,0.01955654]
[1724100482625,0.2355555,59439.0,59438.0,0.01955654]
[1724100482859,0.2355555,59439.0,59432.0,0.168258]
[1724100482860,0.0673165,59439.0,59432.0,0.168258]
[1724100483080,0.0673165,59439.0,59438.0,0.007]
[1724100483501,0.0673165,59439.0,59438.0,0.02377087]
[1724100483737,0.2355555,59439.0,59438.0,0.013]
[1724100484165,0.5720345,59439.0,59438.0,0.007]
[1724100484374,0.5720345,59439.0,59438.0,0.001]
[1724100484591,0.5720345,59439.0,59438.0,0.006]
[1724100484592,1.2459925,59439.0,59438.0,0.006]
[1724100484826,1.5644925,59439.0,59438.0,0.006]
[1724100485064,1.56596588,59439.0,59438.0,0.001]
[1724100485267,1.56596588,59439.0,59412.0,0.168315]
[1724100485268,0.168291,59421.0,59412.0,0.168315]
[1724100485499,0.0813,59428.0,59409.0,0.00052662]
[1724100485703,0.0813,59428.0,59414.0,0.00052662]
[1724100485918,0.0813,59428.0,59416.0,0.00052662]
[1724100486321,0.0813,59428.0,59421.0,0.168289]
[1724100486802,0.4037955,59439.0,59425.0,0.336558]
[1724100486803,0.0813,59436.0,59425.0,0.336558]
[1724100487012,0.0813,59436.0,59422.0,0.01961555]
[1724100487013,0.168257,59433.0,59422.0,0.01961555]
[1724100487224,0.17134877,59432.0,59426.0,0.01680271]
[1724100487650,0.005,59428.0,59423.0,0.168282]
[1724100487867,0.173271,59428.0,59427.0,0.01680006]
[1724100488218,0.173271,59428.0,59425.0,0.001]
[1724100488419,0.168273,59427.0,59420.0,0.168292]
[1724100488777,0.17134877,59430.0,59412.0,0.00052662]
[1724100488982,0.168274,59427.0,59423.0,0.001]
[1724100489188,0.337529,59431.0,59423.0,0.001]
[1724100489189,0.743046,59424.0,59423.0,0.001]
[1724100489408,1.25095877,59424.0,59423.0,0.001]
[1724100489616,1.33583888,59424.0,59423.0,0.001]
[1724100489946,1.67240288,59424.0,59423.0,0.001]
[1724100490357,0.003,59415.0,59405.0,0.51404632]
[1724100490681,0.16833,59407.0,59406.0,0.0168558]
[1724100491042,0.16833,59407.0,59378.0,0.336824]
[1724100491043,0.0782,59405.0,59384.0,0.00052662]
[1724100491243,0.0662,59402.0,59384.0,0.00052662]
[1724100491464,0.0662,59402.0,59385.0,0.18826036]
[1724100491669,0.0662,59402.0,59393.0,0.336736]
[1724100491885,0.0662,59402.0,59397.0,0.168356]
[1724100492092,0.0662,59402.0,59393.0,0.336736]
[1724100492093,0.0662,59402.0,59394.0,0.01696612]
[1724100492287,0.0662,59402.0,59395.0,1.5]
[1724100492570,0.0662,59402.0,59395.0,1.668363]
[1724100492728,0.0662,59402.0,59396.0,0.01696116]
[1724100493150,0.168358,59397.0,59396.0,0.01696116]
[1724100493346,0.168362,59396.0,59389.0,0.16838]
[1724100493595,0.168362,59396.0,59386.0,0.336777]
[1724100493894,0.168365,59395.0,59388.0,0.168383]
[1724100494144,0.505086,59396.0,59395.0,0.001]
[1724100494343,0.505086,59396.0,59382.0,0.336797]
[1724100494344,0.0786,59395.0,59389.0,0.01493528]
[1724100494550,0.16837,59393.0,59386.0,0.168388]
[1724100494967,0.168373,59392.0,59387.0,0.01494042]
[1724100495401,0.00247338,59393.0,59383.0,0.168396]
[1724100495542,0.168373,59392.0,59389.0,0.003]
[1724100495746,0.336737,59394.0,59389.0,0.003]
[1724100495747,0.17134877,59394.0,59389.0,0.003]
[1724100495948,0.17134877,59394.0,59390.0,0.01493345]
[1724100496348,0.336741,59393.0,59389.0,0.003]
[1724100496554,0.168378,59390.0,59389.0,0.003]
[1724100496767,0.168387,59387.0,59380.0,0.168404]
[1724100496968,0.168384,59388.0,59381.0,0.168402]
[1724100497171,0.337757,59390.0,59381.0,0.01495438]
[1724100497172,0.0653,59386.0,59381.0,0.01495438]
[1724100497383,0.0653,59386.0,59381.0,0.18335638]
[1724100497552,0.0653,59386.0,59373.0,0.00052662]
[1724100497553,0.0653,59386.0,59382.0,0.18335005]
[1724100497753,0.0653,59386.0,59383.0,0.336796]
[1724100498013,0.0653,59386.0,59384.0,0.0149474]
[1724100498171,0.0653,59386.0,59381.0,0.337803]
[1724100498347,0.001,59387.0,59369.0,0.419772]
[1724100498348,0.001,59387.0,59386.0,0.841947]
[1724100498567,0.001,59387.0,59385.0,0.00052662]
[1724100498568,0.23365,59400.0,59385.0,0.00052662]
[1724100498801,0.0653,59400.0,59386.0,0.01494275]
[1724100499058,0.0653,59400.0,59395.0,0.168364]
[1724100499297,0.0653,59400.0,59399.0,0.168353]
[1724100499530,0.0653,59400.0,59396.0,0.0149195]
[1724100499531,0.168353,59399.0,59396.0,0.0149195]
[1724100499797,0.168353,59399.0,59388.0,0.336764]
[1724100499798,0.0653,59400.0,59388.0,0.00052662]
[1724100500079,0.0653,59400.0,59396.0,0.168359]
[1724100500233,0.0653,59400.0,59394.0,0.00052662]
[1724100500431,0.0603,59406.0,59396.0,0.33672]
[1724100500614,0.008,59400.0,59399.0,0.001]
[1724100500817,0.008,59400.0,59399.0,0.168353]
[1724100501016,0.008,59400.0,59397.0,1.668356]
[1724100501224,0.012,59400.0,59397.0,1.5]
[1724100501468,0.012,59400.0,59399.0,0.168353]
[1724100501745,0.016,59400.0,59399.0,0.168353]
[1724100501981,0.016,59400.0,59399.0,0.01491253]
[1724100502242,0.016,59400.0,59398.0,0.168354]
[1724100502502,0.016,59400.0,59397.0,1.5]
[1724100502503,0.016,59400.0,59399.0,0.51997153]
[1724100502820,0.46815966,59410.0,59408.0,0.168327]
[1724100503005,0.9379,59416.0,59408.0,0.01489444]
[1724100503006,0.47871,59416.0,59408.0,0.01489444]
[1724100503208,0.168308,59415.0,59408.0,0.18322144]
[1724100503422,0.1421,59416.0,59408.0,0.51838676]
[1724100503423,0.0632,59416.0,59408.0,0.51838676]
[1724100503631,0.0632,59416.0,59408.0,0.85855051]
[1724100504047,0.0632,59416.0,59408.0,0.85907713]
[1724100504243,0.103,59409.0,59408.0,1.19573113]
[1724100504859,0.103,59409.0,59408.0,2.35907713]
[1724100505084,0.103,59409.0,59408.0,2.69573113]
[1724100505499,0.103,59409.0,59408.0,2.70073113]
[1724100505910,0.103,59409.0,59408.0,2.70573113]
[1724100506318,0.1,59409.0,59408.0,2.70073113]
[1724100506516,0.1,59409.0,59408.0,2.8800799]
[1724100506719,0.1,59409.0,59408.0,3.2117339]
[1724100506961,0.1,59409.0,59408.0,3.2037339]
[1724100507135,0.1,59409.0,59408.0,3.2237339]
[1724100507335,0.1,59409.0,59408.0,2.8870799]
[1724100507539,0.1,59409.0,59408.0,3.3037339]
[1724100507741,0.1,59409.0,59408.0,3.3157339]
[1724100507943,0.1,59409.0,59408.0,3.3277339]
[1724100508142,0.46815966,59426.0,59420.0,0.00052662]
[1724100508343,0.17134877,59425.0,59417.0,0.168301]
[1724100508616,0.17134877,59425.0,59421.0,0.01684098]
[1724100508617,0.168286,59423.0,59421.0,0.01684098]
[1724100508821,0.50790777,59425.0,59417.0,1.6683]
[1724100508822,0.168282,59424.0,59417.0,1.6683]
[1724100509022,0.17134877,59425.0,59422.0,0.01683538]
[1724100509195,0.33962777,59425.0,59418.0,0.168298]
[1724100509426,0.504846,59424.0,59423.0,0.01683273]
[1724100509646,0.168282,59424.0,59417.0,1.6683]
[1724100509883,0.33962977,59425.0,59418.0,0.168298]
[1724100510095,0.001,59424.0,59418.0,0.168298]
[1724100510300,0.169282,59424.0,59418.0,0.185144]
[1724100510513,0.168282,59424.0,59418.0,0.185144]
[1724100510723,0.169282,59424.0,59418.0,0.016846]
[1724100510931,0.001,59424.0,59418.0,0.185144]
[1724100511107,0.16829,59421.0,59418.0,0.016846]
[1724100511307,0.001,59424.0,59418.0,0.016846]
[1724100511308,0.168288,59422.0,59418.0,0.016846]
[1724100511719,0.505888,59419.0,59418.0,0.016846]
[1724100511919,0.505888,59419.0,59418.0,0.02191069]
[1724100511920,0.82663677,59419.0,59418.0,0.02191069]
[1724100512127,0.168325,59409.0,59400.0,0.336699]
[1724100512334,0.168325,59409.0,59396.0,0.51404632]
[1724100512335,0.33666,59407.0,59396.0,0.51404632]
[1724100512507,0.0827,59406.0,59401.0,0.02193357]
[1724100512711,0.168336,59405.0,59398.0,0.168354]
[1724100512920,0.0827,59406.0,59396.0,0.336722]
[1724100513084,0.17134877,59407.0,59403.0,0.168341]
[1724100513283,0.50801277,59407.0,59399.0,0.168351]
[1724100513641,0.0647,59405.0,59390.0,0.336755]
[1724100513850,0.0647,59405.0,59392.0,0.168372]
[1724100513851,0.336685,59403.0,59392.0,0.168372]
[1724100514058,0.168355,59398.0,59392.0,0.168372]
[1724100514258,0.168353,59399.0,59392.0,0.168372]
[1724100514486,0.17134877,59398.0,59389.0,1.5009031]
[1724100514673,0.25254877,59398.0,59389.0,1.5009031]
[1724100514874,0.42090477,59398.0,59391.0,0.168374]
[1724100515077,0.25254877,59398.0,59389.0,0.0009031]
[1724100515200,0.25254877,59398.0,59392.0,0.009]
[1724100515637,0.25254877,59398.0,59394.0,0.168365]
[1724100515904,0.25254877,59398.0,59393.0,0.168369]
[1724100516137,0.25354877,59398.0,59392.0,0.176371]
[1724100516338,0.25354877,59398.0,59392.0,0.17689762]
[1724100516491,0.25354877,59398.0,59391.0,0.014]
[1724100516716,0.42290477,59398.0,59394.0,0.013]
[1724100517080,0.0832,59398.0,59395.0,0.02195589]
[1724100517281,0.002,59398.0,59395.0,0.02195589]
[1724100517509,0.002,59398.0,59397.0,0.505075]
[1724100517922,0.002,59398.0,59397.0,0.19037154]
[1724100518143,0.003,59398.0,59397.0,0.52708854]
[1724100518764,0.002,59398.0,59397.0,0.52708854]
[1724100518966,0.002,59398.0,59397.0,0.54108854]
[1724100519171,0.001,59398.0,59397.0,0.54108854]
[1724100519378,0.002,59398.0,59397.0,0.54108854]
[1724100519584,0.001,59398.0,59397.0,0.52708854]
[1724100519862,0.005,59398.0,59397.0,0.52708854]
[1724100520005,0.006,59398.0,59397.0,0.52708854]
[1724100520213,0.006,59398.0,59397.0,0.86433216]
[1724100520421,0.005,59398.0,59397.0,0.86433216]
[1724100520614,0.005,59398.0,59397.0,0.86533216]
[1724100521173,0.005,59398.0,59397.0,0.86480554]
[1724100521734,0.46815966,59404.0,59397.0,0.02301354]
[1724100521905,0.46815966,59404.0,59403.0,0.505024]
[1724100522110,0.0611,59410.0,59409.0,0.504973]
[1724100522332,0.46815966,59414.0,59413.0,0.504939]
[1724100522534,0.0611,59416.0,59414.0,0.168308]
[1724100522733,0.23244877,59416.0,59413.0,0.02200756]
[1724100522904,0.23244877,59416.0,59415.0,0.19030712]
[1724100523110,0.23244877,59416.0,59415.0,0.168307]
[1724100523311,0.23244877,59416.0,59415.0,0.19028844]
[1724100523681,0.0701,59416.0,59415.0,0.52690344]
[1724100523878,0.000821,59419.0,59417.0,0.168301]
[1724100524135,0.17216977,59419.0,59416.0,0.168304]
[1724100524335,0.17216977,59419.0,59418.0,0.02197029]
[1724100524538,0.000821,59419.0,59418.0,0.168299]
[1724100524739,0.000821,59419.0,59418.0,0.19026929]
[1724100525915,0.000821,59419.0,59418.0,0.52786729]
[1724100526299,0.17216977,59419.0,59418.0,0.02297029]
[1724100526698,0.1683,59418.0,59411.0,0.168317]
[1724100526932,0.1683,59418.0,59409.0,0.504964]
[1724100526933,0.33965077,59417.0,59409.0,0.504964]
[1724100527146,0.168313,59413.0,59412.0,0.02196218]
[1724100527352,0.17134877,59413.0,59402.0,0.168343]
[1724100527548,0.168323,59410.0,59403.0,0.168341]
[1724100527749,0.17134877,59409.0,59403.0,0.19033664]
[1724100527950,0.33967477,59409.0,59403.0,0.02199564]
[1724100528181,0.168328,59408.0,59403.0,0.02199564]
[1724100528387,0.336667,59406.0,59403.0,0.02199564]
[1724100528589,0.41748477,59405.0,59399.0,0.168351]
[1724100528807,0.41748477,59405.0,59403.0,0.002]
[1724100528808,0.168339,59404.0,59403.0,0.002]
[1724100528964,0.41748477,59405.0,59403.0,0.002]
[1724100529159,0.168338,59404.0,59403.0,0.004]
[1724100529383,0.168338,59404.0,59398.0,0.168354]
[1724100529587,0.168338,59404.0,59403.0,0.007]
[1724100529794,0.67636377,59404.0,59403.0,0.007]
[1724100529993,0.67736377,59404.0,59403.0,0.007]
[1724100530193,0.67883715,59404.0,59403.0,0.007]
[1724100530955,0.67636377,59404.0,59403.0,0.007]
[1724100531171,0.67636377,59404.0,59397.0,0.168357]
[1724100531172,0.168341,59403.0,59397.0,0.168357]
[1724100531388,0.28067949,59402.0,59398.0,0.02201423]
[1724100531850,0.17134877,59402.0,59398.0,0.02201423]
[1724100532738,0.17834877,59402.0,59398.0,0.02201423]
[1724100533135,0.34669277,59402.0,59398.0,0.02201423]
[1724100533537,0.17834877,59402.0,59397.0,0.168358]
[1724100533836,0.17834877,59402.0,59398.0,0.02201269]
[1724100534062,0.18334877,59402.0,59398.0,0.02301269]
[1724100534310,0.35169377,59402.0,59398.0,0.02301269]
[1724100534473,0.17282638,59399.0,59398.0,0.02301269]
[1724100534676,0.168368,59394.0,59389.0,0.0009031]
[1724100534878,0.0622,59392.0,59389.0,0.0009031]
[1724100535197,0.50572981,59390.0,59389.0,0.0009031]
[1724100535399,1.01283558,59390.0,59389.0,0.0009031]
[1724100536346,0.67607858,59390.0,59389.0,0.0009031]
[1724100536580,0.33932158,59390.0,59389.0,0.0009031]
[1724100537008,0.33932158,59390.0,59389.0,0.0019031]
[1724100537420,0.33932158,59390.0,59389.0,0.0049031]
[1724100537835,0.33932158,59390.0,59389.0,0.0019031]
[1724100538258,0.35032158,59390.0,59389.0,0.0019031]
[1724100538461,0.35032158,59390.0,59389.0,0.0029031]
[1724100538462,0.36432158,59390.0,59389.0,0.0029031]
[1724100538666,0.70107858,59390.0,59389.0,0.0029031]
[1724100538871,0.18234877,59390.0,59389.0,0.0019031]
[1724100539075,0.021,59390.0,59389.0,0.1712841]
[1724100539285,0.021,59390.0,59389.0,0.1702841]
[1724100539286,0.01,59390.0,59389.0,0.1702841]
[1724100539817,0.01,59390.0,59389.0,0.0019031]
[1724100540163,0.01,59390.0,59389.0,0.1702841]
[1724100540364,0.01,59390.0,59389.0,0.50757272]
[1724100540598,0.019,59390.0,59389.0,0.1712841]
[1724100540779,0.019,59390.0,59389.0,0.0029031]
[1724100540985,0.01,59390.0,59389.0,0.0019031]
[1724100541231,0.336713,59398.0,59389.0,0.0009031]
[1724100541434,0.009,59390.0,59389.0,0.1712841]
[1724100541646,0.02,59390.0,59389.0,0.1712841]
[1724100541882,0.011,59390.0,59389.0,0.1692841]
[1724100542084,0.014,59390.0,59389.0,0.5060461]
[1724100542284,0.015,59390.0,59389.0,0.5060461]
[1724100542701,0.015,59390.0,59389.0,0.8428081]
[1724100543532,0.015,59390.0,59389.0,0.5060461]
[1724100543921,0.014,59390.0,59389.0,0.5060461]
[1724100544122,0.17134877,59397.0,59392.0,0.336741]
[1724100544338,0.17134877,59397.0,59392.0,0.168372]
[1724100544688,0.0775,59392.0,59389.0,0.0039031]
[1724100544865,0.505135,59390.0,59389.0,0.0019031]
[1724100545070,0.17134877,59390.0,59389.0,0.0019031]
[1724100545320,0.17134877,59390.0,59389.0,0.0009031]
[1724100545321,0.67648377,59390.0,59389.0,0.0009031]
[1724100545515,1.09976659,59390.0,59389.0,0.0009031]
[1724100545720,1.10123997,59390.0,59389.0,0.0009031]
[1724100546124,1.10123997,59390.0,59389.0,0.0019031]
[1724100546125,1.08391415,59390.0,59389.0,0.0019031]
[1724100546333,1.09391415,59390.0,59389.0,0.0019031]
[1724100547345,1.08391415,59390.0,59389.0,0.0009031]
[1724100547546,1.57048737,59390.0,59389.0,0.0009031]
[1724100547739,1.59148737,59390.0,59389.0,0.0029031]
[1724100548001,1.59148737,59390.0,59389.0,0.0019031]
[1724100548205,1.59148737,59390.0,59389.0,0.0009031]
[1724100548206,1.92024437,59390.0,59389.0,0.0009031]
[1724100548413,2.04600497,59390.0,59389.0,0.0009031]
[1724100548543,2.36770497,59390.0,59389.0,0.0029031]
[1724100548954,2.32770497,59390.0,59389.0,0.0009031]
[1724100549417,2.20588875,59390.0,59389.0,0.0029031]
[1724100551083,2.17952815,59390.0,59389.0,0.0029031]
[1724100551404,1.84177115,59390.0,59389.0,0.0029031]
[1724100551604,1.83929777,59390.0,59389.0,0.0029031]
[1724100551804,1.48154077,59390.0,59389.0,0.0029031]
[1724100552179,1.96807256,59390.0,59389.0,0.0029031]
[1724100552382,1.99525616,59390.0,59389.0,0.0029031]
[1724100552586,1.96889456,59390.0,59389.0,0.0029031]
[1724100552902,2.01825643,59390.0,59389.0,0.0029031]
[1724100553302,1.99189456,59390.0,59389.0,0.0029031]
[1724100553515,2.45501347,59390.0,59389.0,0.0029031]
[1724100554085,2.11825647,59390.0,59389.0,0.0029031]
[1724100554290,1.96995506,59390.0,59389.0,0.0029031]
[1724100554500,1.94359315,59390.0,59389.0,0.0029031]
[1724100554732,2.28035015,59390.0,59389.0,0.0029031]